fUSD/lending_fUSD_20250804
["ID","MTS","AMOUNT","RATE_DAILY","PERIOD"]
[377240429,1754306003026,-400.0,0.00040821,2]
[377240430,1754306003036,-1348.28,0.00040821,2]
[377240431,1754306003046,-908.97,0.00040821,2]
[377240432,1754306003056,-1407.62,0.00040821,2]
[377240433,1754306003066,-1144.27,0.00040821,2]
[377240434,1754306003076,-448.56,0.00040821,2]
[377240435,1754306003086,-400.0,0.00040821,2]
[377240436,1754306003097,-853.71,0.00040821,2]
[377240437,1754306003107,-609.84,0.00040821,2]
[377240438,1754306003117,-400.0,0.00040821,2]
[377240439,1754306003126,-1274.99,0.00040821,2]
[377240440,1754306003136,-600.02,0.00040821,2]
[377240441,1754306003147,-800.16,0.00040821,2]
[377240442,1754306003157,-2778.93,0.00040821,2]
[377240443,1754306003166,-787.7,0.00040821,2]
[377240444,1754306003177,-500.6,0.00040821,2]
[377240445,1754306003187,-499.94,0.00040821,2]
[377240446,1754306003198,-627.38,0.00040821,2]
[377240447,1754306003209,-461.32,0.00040821,2]
[377240448,1754306003219,-400.0,0.00040821,2]
[377240449,1754306003230,-1107.49,0.00040821,2]
[377240450,1754306003240,-400.0,0.00040821,2]
[377240451,1754306003249,-1182.54,0.00040821,2]
[377240452,1754306003259,-2273.69,0.00040821,2]
[377240453,1754306003268,-790.39,0.00040821,2]
[377240454,1754306003278,-400.0,0.00040821,2]
[377240455,1754306003288,-400.0,0.00040821,2]
[377240456,1754306003298,-400.0,0.00040821,2]
[377240457,1754306003308,-746.2,0.00040821,2]
[377240458,1754306003318,-400.0,0.00040821,2]
[377240459,1754306003328,-2544.09,0.00040821,2]
[377240460,1754306003338,-1066.14,0.00040821,2]
[377240461,1754306003349,-513.6,0.00040821,2]
[377240462,1754306003359,-856.62,0.00040821,2]
[377240463,1754306003369,-445.82,0.00040821,2]
[377240464,1754306003379,-1070.42,0.00040821,2]
[377240465,1754306003390,-548.68,0.00040821,2]
[377240466,1754306003400,-400.0,0.00040821,2]
[377240467,1754306003411,-400.0,0.00040821,2]
[377240468,1754306003421,-413.36,0.00040821,2]
[377240469,1754306003432,-460.79,0.00040821,2]
[377240470,1754306003442,-865.19,0.00040821,2]
[377240471,1754306003452,-1968.28,0.00040821,2]
[377240472,1754306003463,-1119.16,0.00040821,2]
[377240473,1754306003474,-400.0,0.00040821,2]
[377240474,1754306003485,-1422.91,0.00040821,2]
[377240475,1754306003496,-400.0,0.00040821,2]
[377240476,1754306003506,-400.0,0.00040821,2]
[377240477,1754306003516,-1000.0,0.00040821,2]
[377240478,1754306003527,-1354.16,0.00040821,2]
[377240479,1754306003537,-625.15,0.00040821,2]
[377240480,1754306003548,-400.0,0.00040821,2]
[377240481,1754306003558,-1598.25,0.00040821,2]
[377240482,1754306003570,-400.0,0.00040821,2]
[377240483,1754306003580,-1192.41,0.00040821,2]
[377240484,1754306003591,-400.0,0.00040821,2]
[377240485,1754306003601,-668.58,0.00040821,2]
[377240486,1754306003611,-575.89,0.00040821,2]
[377240487,1754306003622,-400.0,0.00040821,2]
[377240488,1754306003633,-1116.34,0.00040821,2]
[377240489,1754306003643,-1214.62,0.00040821,2]
[377240490,1754306003654,-1137.04,0.00040821,2]
[377240491,1754306003664,-400.0,0.00040821,2]
[377240492,1754306003675,-400.0,0.00040821,2]
[377240493,1754306003686,-1590.64,0.00040821,2]
[377240494,1754306003696,-400.0,0.00040821,2]
[377240495,1754306003706,-400.0,0.00040821,2]
[377240496,1754306003717,-400.0,0.00040821,2]
[377240497,1754306003729,-400.0,0.00040821,2]
[377240498,1754306003740,-1138.57,0.00040821,2]
[377240499,1754306003750,-1069.29,0.00040821,2]
[377240500,1754306003760,-400.0,0.00040821,2]
[377240501,1754306003770,-400.0,0.00040821,2]
[377240502,1754306003780,-400.0,0.00040821,2]
[377240503,1754306003791,-400.0,0.00040821,2]
[377240504,1754306003802,-1131.33,0.00040821,2]
[377240505,1754306003812,-1171.06,0.00040821,2]
[377240506,1754306003823,-894.77,0.00040821,2]
[377240507,1754306003833,-1384.7,0.00040821,2]
[377240508,1754306003843,-599.89,0.00040821,2]
[377240509,1754306003854,-2355.79,0.00040821,2]
[377240510,1754306003864,-1091.28,0.00040821,2]
[377240511,1754306003874,-400.0,0.00040821,2]
[377240512,1754306003884,-400.0,0.00040821,2]
[377240513,1754306003894,-2327.34,0.00040821,2]
[377240514,1754306003904,-773.66,0.00040821,2]
[377240515,1754306003913,-781.86,0.00040821,2]
[377240516,1754306003925,-501.83,0.00040821,2]
[377240517,1754306003935,-1915.51,0.00040821,2]
[377240518,1754306003944,-400.0,0.00040821,2]
[377240519,1754306003954,-892.62,0.00040821,2]
[377240520,1754306003964,-829.75,0.00040821,2]
[377240521,1754306003974,-538.38,0.00040821,2]
[377240522,1754306003984,-1000.94,0.00040821,2]
[377240523,1754306003994,-1098.02,0.00040821,2]
[377240524,1754306004004,-1453.05,0.00040821,2]
[377240525,1754306004013,-695.84,0.00040821,2]
[377240526,1754306004023,-437.7,0.00040821,2]
[377240527,1754306004033,-1242.82,0.00040821,2]
[377240528,1754306004042,-724.66,0.00040821,2]
[377240529,1754306004052,-1119.1,0.00040821,2]
[377240530,1754306004062,-1165.58,0.00040821,2]
[377240531,1754306004071,-917.85,0.00040821,2]
[377240532,1754306004081,-2290.17,0.00040821,2]
[377240533,1754306004090,-400.0,0.00040821,2]
[377240534,1754306004099,-1308.63,0.00040821,2]
[377240535,1754306004109,-801.64,0.00040821,2]
[377240536,1754306004119,-400.0,0.00040821,2]
[377240537,1754306004128,-906.75,0.00040821,2]
[377240538,1754306004137,-400.0,0.00040821,2]
[377240539,1754306004147,-1397.01,0.00040821,2]
[377240540,1754306004158,-564.37,0.00040821,2]
[377240541,1754306004167,-918.46,0.00040821,2]
[377240542,1754306004177,-2104.64,0.00040821,2]
[377240543,1754306004186,-1040.59,0.00040821,2]
[377240544,1754306004196,-400.0,0.00040821,2]
[377240545,1754306004205,-1334.51,0.00040821,2]
[377240546,1754306004215,-781.51,0.00040821,2]
[377240547,1754306004224,-1353.35,0.00040821,2]
[377240548,1754306004233,-1874.18,0.00040821,2]
[377240549,1754306004242,-1021.01,0.00040821,2]
[377240550,1754306004251,-400.0,0.00040821,2]
[377240551,1754306004261,-400.0,0.00040821,2]
[377240552,1754306004271,-1025.08,0.00040821,2]
[377240553,1754306004280,-627.8,0.00040821,2]
[377240554,1754306004289,-400.0,0.00040821,2]
[377240555,1754306004298,-1868.95,0.00040821,2]
[377240556,1754306004308,-468.7,0.00040821,2]
[377240557,1754306004318,-1314.14,0.00040821,2]
[377240558,1754306004327,-914.79,0.00040821,2]
[377240559,1754306004337,-400.0,0.00040821,2]
[377240560,1754306004347,-1387.83,0.00040821,2]
[377240561,1754306004356,-1038.98,0.00040821,2]
[377240562,1754306004366,-925.88,0.00040821,2]
[377240563,1754306004375,-1014.44,0.00040821,2]
[377240564,1754306004385,-935.88,0.00040821,2]
[377240565,1754306004395,-400.0,0.00040821,2]
[377240566,1754306004404,-590.39,0.00040821,2]
[377240567,1754306004414,-1614.1,0.00040821,2]
[377240568,1754306004423,-710.0,0.00040821,2]
[377240569,1754306004433,-1412.5,0.00040821,2]
[377240570,1754306004442,-608.78,0.00040821,2]
[377240571,1754306004452,-400.0,0.00040821,2]
[377240572,1754306004462,-1252.59,0.00040821,2]
[377240573,1754306004472,-400.0,0.00040821,2]
[377240574,1754306004483,-856.19,0.00040821,2]
[377240575,1754306004493,-1142.6,0.00040821,2]
[377240576,1754306004502,-695.98,0.00040821,2]
[377240577,1754306004512,-400.0,0.00040821,2]
[377240578,1754306004521,-400.0,0.00040821,2]
[377240579,1754306004530,-793.48,0.00040821,2]
[377240580,1754306004540,-810.9,0.00040821,2]
[377240581,1754306004550,-1752.3,0.00040821,2]
[377240582,1754306004559,-400.0,0.00040821,2]
[377240583,1754306004569,-1639.2,0.00040821,2]
[377240584,1754306004579,-1899.23,0.00040821,2]
[377240585,1754306004588,-1057.57,0.00040821,2]
[377240586,1754306004598,-400.0,0.00040821,2]
[377240587,1754306004608,-1894.1,0.00040821,2]
[377240588,1754306004617,-400.0,0.00040821,2]
[377240589,1754306004626,-400.0,0.00040821,2]
[377240590,1754306004636,-400.0,0.00040821,2]
[377240591,1754306004646,-1066.82,0.00040821,2]
[377240592,1754306004655,-1326.33,0.00040821,2]
[377240593,1754306004664,-405.69,0.00040821,2]
[377240594,1754306004674,-1189.48,0.00040821,2]
[377240595,1754306004682,-1704.15,0.00040821,2]
[377240596,1754306004691,-1046.61,0.00040821,2]
[377240597,1754306004699,-400.0,0.00040821,2]
[377240598,1754306004709,-833.04,0.00040821,2]
[377240599,1754306004718,-400.0,0.00040821,2]
[377240600,1754306004728,-684.99,0.00040821,2]
[377240601,1754306004737,-400.0,0.00040821,2]
[377240602,1754306004745,-925.69,0.00040821,2]
[377240603,1754306004754,-1612.63,0.00040821,2]
[377240604,1754306004762,-482.48,0.00040821,2]
[377240605,1754306004771,-596.8,0.00040821,2]
[377240606,1754306004780,-1463.3,0.00040821,2]
[377240607,1754306004789,-1295.25,0.00040821,2]
[377240608,1754306004798,-2145.64,0.00040821,2]
[377240609,1754306004808,-1283.66,0.00040821,2]
[377240610,1754306004818,-469.70292845,0.00040821,2]
[377240611,1754306004827,-758.52,0.00040821,2]
[377240612,1754306004837,-544.74656606,0.00040821,2]
[377240613,1754306004846,-721.69,0.00040821,2]
[377240614,1754306004856,-988.46,0.00040821,2]
[377240615,1754306004870,-7192.74,0.00040821,2]
[377240616,1754306004879,-896.0,0.00040821,2]
[377240617,1754306004889,-453.42,0.00040821,2]
[377240618,1754306004898,-766.66,0.00040821,2]
[377240619,1754306004908,-230.0,0.00040821,2]
[377240620,1754306004917,-627.97,0.00040821,2]
[377240621,1754306004926,-400.0,0.00040821,2]
[377240622,1754306004940,-400.0,0.00040821,2]
[377240623,1754306004950,-1762.88,0.00040821,2]
[377240624,1754306004960,-1472.33,0.00040821,2]
[377240625,1754306004970,-400.0,0.00040821,2]
[377240626,1754306004981,-400.0,0.00040821,2]
[377240627,1754306004992,-1303.02,0.00040821,2]
[377240628,1754306005001,-796.7,0.00040821,2]
[377240629,1754306005012,-1414.12,0.00040821,2]
[377240630,1754306005022,-400.0,0.00040821,2]
[377240631,1754306005031,-700.57,0.00040821,2]
[377240632,1754306005041,-986.33,0.00040821,2]
[377240633,1754306005051,-553.07,0.00040821,2]
[377240634,1754306005061,-658.58,0.00040821,2]
[377240635,1754306005071,-400.0,0.00040821,2]
[377240636,1754306005081,-400.0,0.00040821,2]
[377240637,1754306005091,-499.21,0.00040821,2]
[377240638,1754306005100,-1836.51,0.00040821,2]
[377240639,1754306005110,-1050.51,0.00040821,2]
[377240640,1754306005119,-682.1,0.00040821,2]
[377240641,1754306005129,-739.68,0.00040821,2]
[377240642,1754306005138,-1274.01,0.00040821,2]
[377240643,1754306005147,-400.0,0.00040821,2]
[377240644,1754306005157,-651.05,0.00040821,2]
[377240645,1754306005167,-1321.92,0.00040821,2]
[377240646,1754306005176,-1303.02,0.00040821,2]
[377240647,1754306005185,-400.0,0.00040821,2]
[377240648,1754306005195,-822.07,0.00040821,2]
[377240649,1754306005205,-999.83,0.00040821,2]
[377240650,1754306005214,-1091.32,0.00040821,2]
[377240651,1754306005223,-400.0,0.00040821,2]
[377240652,1754306005233,-596.36,0.00040821,2]
[377240653,1754306005242,-562.8,0.00040821,2]
[377240654,1754306005252,-793.84,0.00040821,2]
[377240655,1754306005262,-1242.64,0.00040821,2]
[377240656,1754306005271,-1330.82,0.00040821,2]
[377240657,1754306005281,-558.09,0.00040821,2]
[377240658,1754306005290,-1446.54,0.00040821,2]
[377240659,1754306005299,-1346.03,0.00040821,2]
[377240660,1754306005309,-879.7,0.00040821,2]
[377240661,1754306005319,-1481.75,0.00040821,2]
[377240662,1754306005488,-400.0,0.00040821,2]
[377240663,1754306005498,-1081.44,0.00040821,2]
[377240664,1754306005507,-400.0,0.00040821,2]
[377240665,1754306005517,-2294.74,0.00040821,2]
[377240666,1754306005527,-528.1,0.00040821,2]
[377240667,1754306005537,-768.31,0.00040821,2]
[377240668,1754306005548,-2185.11,0.00040821,2]
[377240669,1754306005558,-764.62,0.00040821,2]
[377240670,1754306005568,-2154.11,0.00040821,2]
[377240671,1754306005578,-400.0,0.00040821,2]
[377240672,1754306005587,-670.62,0.00040821,2]
[377240673,1754306005597,-400.0,0.00040821,2]
[377240674,1754306005606,-1687.51,0.00040821,2]
[377240675,1754306005615,-400.0,0.00040821,2]
[377240676,1754306005625,-1797.87,0.00040821,2]
[377240677,1754306005635,-884.68,0.00040821,2]
[377240678,1754306005646,-466.07,0.00040821,2]
[377240679,1754306005655,-1427.05,0.00040821,2]
[377240680,1754306005666,-659.47,0.00040821,2]
[377240681,1754306005675,-1547.49,0.00040821,2]
[377240682,1754306005685,-650.0,0.00040821,120]
[377240683,1754306005695,-430.38,0.00040821,2]
[377240684,1754306005704,-400.0,0.00040821,2]
[377240685,1754306005713,-400.0,0.00040821,2]
[377240686,1754306005722,-948.07,0.00040821,2]
[377240687,1754306005731,-1424.69,0.00040821,2]
[377240688,1754306005741,-1692.45,0.00040821,2]
[377240689,1754306005750,-1068.48,0.00040821,2]
[377240690,1754306005759,-870.74,0.00040821,2]
[377240691,1754306005769,-400.0,0.00040821,2]
[377240692,1754306005778,-1630.8,0.00040821,2]
[377240693,1754306005787,-840.48,0.00040821,2]
[377240694,1754306005797,-665.52,0.00040821,2]
[377240695,1754306005806,-469.7,0.00040821,2]
[377240696,1754306005815,-1702.7,0.00040821,2]
[377240697,1754306005825,-727.65,0.00040821,2]
[377240698,1754306005834,-1107.78,0.00040821,2]
[377240699,1754306005845,-1880.84,0.00040821,2]
[377240700,1754306005855,-813.9,0.00040821,2]
[377240701,1754306005865,-400.0,0.00040821,2]
[377240702,1754306005874,-874.7,0.00040821,2]
[377240703,1754306005884,-400.0,0.00040821,2]
[377240704,1754306005893,-426.16,0.00040821,2]
[377240705,1754306005902,-400.0,0.00040821,2]
[377240706,1754306005912,-665.68,0.00040821,2]
[377240707,1754306005921,-1110.47,0.00040821,2]
[377240708,1754306005934,-400.0,0.00040821,2]
[377240709,1754306005944,-903.87,0.00040821,2]
[377240710,1754306005953,-470.81,0.00040821,2]
[377240711,1754306005962,-1358.5,0.00040821,2]
[377240712,1754306005971,-440.85,0.00040821,2]
[377240713,1754306005981,-1647.73,0.00040821,2]
[377240714,1754306005990,-1246.04,0.00040821,2]
[377240715,1754306005999,-924.22,0.00040821,2]
[377240716,1754306006010,-994.67,0.00040821,2]
[377240717,1754306006020,-472.86,0.00040821,2]
[377240718,1754306006030,-1443.42,0.00040821,2]
[377240719,1754306006040,-770.36,0.00040821,2]
[377240720,1754306006051,-1946.52,0.00040821,2]
[377240721,1754306006060,-979.61,0.00040821,2]
[377240722,1754306006069,-400.0,0.00040821,2]
[377240723,1754306006079,-400.0,0.00040821,2]
[377240724,1754306006088,-400.0,0.00040821,2]
[377240725,1754306006098,-2101.73,0.00040821,2]
[377240726,1754306006107,-860.7,0.00040821,2]
[377240727,1754306006116,-645.5,0.00040821,2]
[377240728,1754306006126,-537.4,0.00040821,2]
[377240729,1754306006135,-537.04,0.00040821,2]
[377240730,1754306006144,-450.14,0.00040821,2]
[377240731,1754306006153,-798.27,0.00040821,2]
[377240732,1754306006162,-1175.36,0.00040821,2]
[377240733,1754306006171,-456.48,0.00040821,2]
[377240734,1754306006180,-1226.27,0.00040821,2]
[377240735,1754306006189,-939.52,0.00040821,2]
[377240736,1754306006198,-482.35,0.00040821,2]
[377240737,1754306006208,-1154.12,0.00040821,2]
[377240738,1754306006217,-400.0,0.00040821,2]
[377240739,1754306006226,-786.99,0.00040821,2]
[377240740,1754306006236,-842.4,0.00040821,2]
[377240741,1754306006245,-869.19,0.00040821,2]
[377240742,1754306006254,-400.0,0.00040821,2]
[377240743,1754306006264,-700.37,0.00040821,2]
[377240744,1754306006273,-400.0,0.00040821,2]
[377240745,1754306006282,-1791.49,0.00040821,2]
[377240746,1754306006292,-1000.94,0.00040821,2]
[377240747,1754306006301,-1221.49,0.00040821,2]
[377240748,1754306006310,-400.0,0.00040821,2]
[377240749,1754306006320,-1747.77,0.00040821,2]
[377240750,1754306006330,-400.0,0.00040821,2]
[377240751,1754306006339,-991.24,0.00040821,2]
[377240752,1754306006348,-1316.83,0.00040821,2]
[377240753,1754306006357,-1344.32,0.00040821,2]
[377240754,1754306006366,-755.49,0.00040821,2]
[377240755,1754306006375,-778.88,0.00040821,2]
[377240756,1754306006384,-1539.3,0.00040821,2]
[377240757,1754306006393,-444.22,0.00040821,2]
[377240758,1754306006403,-1258.35,0.00040821,2]
[377240759,1754306006412,-400.0,0.00040821,2]
[377240760,1754306006421,-400.0,0.00040821,2]
[377240761,1754306006430,-1113.84,0.00040821,2]
[377240762,1754306006439,-400.0,0.00040821,2]
[377240763,1754306006449,-1182.86,0.00040821,2]
[377240764,1754306006459,-4729.89,0.00040821,2]
[377240765,1754306006469,-1278.85,0.00040821,2]
[377240766,1754306006478,-454.82,0.00040821,2]
[377240767,1754306006488,-1031.98,0.00040821,2]
[377240768,1754306006497,-775.41,0.00040821,2]
[377240769,1754306006507,-549.74612286,0.00040821,2]
[377240770,1754306006517,-1202.77,0.00040821,2]
[377240771,1754306006526,-400.0,0.00040821,2]
[377240772,1754306006535,-400.0,0.00040821,2]
[377240773,1754306006545,-492.55,0.00040821,2]
[377240774,1754306006555,-1481.93,0.00040821,2]
[377240775,1754306006565,-400.0,0.00040821,2]
[377240776,1754306006574,-1675.62,0.00040821,2]
[377240777,1754306006583,-584.39,0.00040821,2]
[377240778,1754306006592,-679.61,0.00040821,2]
[377240779,1754306006602,-744.37,0.00040821,2]
[377240780,1754306006611,-2502.12,0.00040821,2]
[377240781,1754306006620,-1340.53,0.00040821,2]
[377240782,1754306006629,-1484.28,0.00040821,2]
[377240783,1754306006642,-400.0,0.00040821,2]
[377240784,1754306006651,-815.04,0.00040821,2]
[377240785,1754306006660,-1012.72,0.00040821,2]
[377240786,1754306006670,-2328.28,0.00040821,2]
[377240787,1754306006680,-1969.15,0.00040821,2]
[377240788,1754306006689,-1435.3,0.00040821,2]
[377240789,1754306006698,-400.0,0.00040821,2]
[377240790,1754306006707,-400.0,0.00040821,2]
[377240791,1754306006717,-400.0,0.00040821,2]
[377240792,1754306006726,-913.42,0.00040821,2]
[377240793,1754306006735,-1703.95,0.00040821,2]
[377240794,1754306006745,-2504.25,0.00040821,2]
[377240795,1754306006754,-741.38,0.00040821,2]
[377240796,1754306006763,-1030.22,0.00040821,2]
[377240797,1754306006773,-400.0,0.00040821,2]
[377240798,1754306006783,-403.97836051,0.00040821,2]
[377240799,1754306006792,-400.0,0.00040821,2]
[377240800,1754306006802,-400.0,0.00040821,2]
[377240801,1754306006812,-400.0,0.00040821,2]
[377240802,1754306006822,-1237.75,0.00040821,2]
[377240803,1754306006831,-623.67,0.00040821,2]
[377240804,1754306006841,-245.07,0.00040821,2]
[377240805,1754306006851,-400.0,0.00040821,2]
[377240806,1754306006860,-992.32,0.00040821,2]
[377240807,1754306006870,-602.81,0.00040821,2]
[377240808,1754306006879,-400.0,0.00040821,2]
[377240809,1754306006888,-400.0,0.00040821,2]
[377240810,1754306006898,-400.0,0.00040821,2]
[377240811,1754306006907,-537.5,0.00040821,2]
[377240812,1754306006916,-630.59,0.00040821,2]
[377240813,1754306006926,-956.99,0.00040821,2]
[377240814,1754306006939,-1585.73,0.00040821,2]
[377240815,1754306006948,-1301.61,0.00040821,2]
[377240816,1754306006957,-1889.25,0.00040821,2]
[377240817,1754306006966,-641.71,0.00040821,2]
[377240818,1754306006977,-400.0,0.00040821,2]
[377240819,1754306006986,-534.92605788,0.00040821,2]
[377240820,1754306006995,-924.72,0.00040821,2]
[377240821,1754306007006,-1059.24,0.00040821,2]
[377240822,1754306007015,-2092.15,0.00040821,2]
[377240823,1754306007024,-533.38,0.00040821,2]
[377240824,1754306007034,-890.3,0.00040821,2]
[377240825,1754306007043,-501.38,0.00040821,2]
[377240826,1754306007053,-1366.75,0.00040821,2]
[377240827,1754306007062,-1441.16,0.00040821,2]
[377240828,1754306007071,-690.08,0.00040821,2]
[377240829,1754306007080,-545.68,0.00040821,2]
[377240830,1754306007090,-990.2,0.00040821,2]
[377240831,1754306007099,-400.0,0.00040821,2]
[377240832,1754306007108,-803.42,0.00040821,2]
[377240833,1754306007118,-645.51,0.00040821,2]
[377240834,1754306007127,-400.0,0.00040821,2]
[377240835,1754306007137,-726.21,0.00040821,2]
[377240836,1754306007146,-400.0,0.00040821,2]
[377240837,1754306007155,-400.0,0.00040821,2]
[377240838,1754306007165,-400.0,0.00040821,2]
[377240839,1754306007174,-512.47177991,0.00040821,2]
[377240840,1754306007183,-506.95,0.00040821,2]
[377240841,1754306007192,-788.62,0.00040821,2]
[377240842,1754306007201,-931.05,0.00040821,2]
[377240843,1754306007211,-400.0,0.00040821,2]
[377240844,1754306007220,-2071.07,0.00040821,2]
[377240845,1754306007229,-552.88,0.00040821,2]
[377240846,1754306007239,-1077.59,0.00040821,2]
[377240847,1754306007249,-400.0,0.00040821,2]
[377240848,1754306007259,-400.0,0.00040821,2]
[377240849,1754306007268,-551.2,0.00040821,2]
[377240850,1754306007278,-1479.72,0.00040821,2]
[377240851,1754306007287,-400.0,0.00040821,2]
[377240852,1754306007297,-418.78,0.00040821,120]
[377240853,1754306007306,-400.0,0.00040821,2]
[377240854,1754306007316,-628.0,0.00040821,2]
[377240855,1754306007327,-400.0,0.00040821,2]
[377240856,1754306007337,-400.0,0.00040821,2]
[377240857,1754306007347,-400.0,0.00040821,2]
[377240858,1754306007356,-1186.41,0.00040821,2]
[377240859,1754306007366,-1047.92,0.00040821,2]
[377240860,1754306007375,-1368.23,0.00040821,2]
[377240861,1754306007384,-882.59,0.00040821,2]
[377240862,1754306007394,-845.07,0.00040821,2]
[377240863,1754306007403,-627.42,0.00040821,2]
[377240864,1754306007413,-1654.02,0.00040821,2]
[377240865,1754306007422,-1022.16,0.00040821,2]
[377240866,1754306007432,-928.07,0.00040821,2]
[377240867,1754306007441,-463.65,0.00040821,2]
[377240868,1754306007451,-987.02,0.00040821,2]
[377240869,1754306007460,-1457.97,0.00040821,2]
[377240870,1754306007470,-330.34234281,0.00040821,2]
[377240871,1754306007479,-1127.8,0.00040821,2]
[377240872,1754306007490,-1263.43,0.00040821,2]
[377240873,1754306007499,-732.77,0.00040821,2]
[377240874,1754306007508,-512.10561964,0.00040821,2]
[377240875,1754306007517,-1212.72,0.00040821,2]
[377240876,1754306007526,-1364.75,0.00040821,2]
[377240877,1754306007535,-1963.71,0.00040821,2]
[377240878,1754306007545,-669.31,0.00040821,2]
[377240879,1754306007555,-3088.08,0.00040821,2]
[377240880,1754306007564,-400.0,0.00040821,2]
[377240881,1754306007574,-400.0,0.00040821,2]
[377240882,1754306007584,-1725.86,0.00040821,2]
[377240883,1754306007593,-1338.78,0.00040821,2]
[377240884,1754306007602,-470.83,0.00040821,2]
[377240885,1754306007611,-1049.12,0.00040821,2]
[377240886,1754306007621,-1157.0,0.00040821,2]
[377240887,1754306007630,-400.0,0.00040821,2]
[377240888,1754306007640,-400.0,0.00040821,2]
[377240889,1754306007649,-888.73,0.00040821,2]
[377240890,1754306007659,-719.82,0.00040821,2]
[377240891,1754306007668,-574.83,0.00040821,2]
[377240892,1754306007677,-1718.88,0.00040821,2]
[377240893,1754306007687,-404.40856132,0.00040821,2]
[377240894,1754306007696,-534.87808952,0.00040821,2]
[377240895,1754306007705,-1630.61,0.00040821,2]
[377240896,1754306007714,-629.17,0.00040821,2]
[377240897,1754306007723,-400.0,0.00040821,2]
[377240898,1754306007732,-1303.32,0.00040821,2]
[377240899,1754306007742,-666.66,0.00040821,2]
[377240900,1754306007752,-603.36,0.00040821,2]
[377240901,1754306007761,-495.64,0.00040821,2]
[377240902,1754306007770,-1485.45,0.00040821,2]
[377240903,1754306007780,-718.11,0.00040821,2]
[377240904,1754306007790,-400.0,0.00040821,2]
[377240905,1754306007799,-1527.44,0.00040821,2]
[377240906,1754306007810,-1307.14,0.00040821,2]
[377240907,1754306007819,-400.0,0.00040821,2]
[377240908,1754306007828,-1110.24,0.00040821,2]
[377240909,1754306007838,-869.15,0.00040821,2]
[377240910,1754306007847,-536.27,0.00040821,2]
[377240911,1754306007857,-1091.81,0.00040821,2]
[377240912,1754306007866,-1130.18,0.00040821,2]
[377240913,1754306007875,-966.32,0.00040821,2]
[377240914,1754306007885,-400.0,0.00040821,2]
[377240915,1754306007894,-1117.05,0.00040821,2]
[377240916,1754306007903,-905.65,0.00040821,2]
[377240917,1754306007912,-1075.79,0.00040821,2]
[377240918,1754306007922,-471.33,0.00040821,2]
[377240919,1754306007936,-400.0,0.00040821,2]
[377240920,1754306007945,-798.59,0.00040821,2]
[377240921,1754306007955,-400.0,0.00040821,2]
[377240922,1754306007964,-1284.95,0.00040821,2]
[377240923,1754306007973,-1354.83,0.00040821,2]
[377240924,1754306007982,-912.08,0.00040821,2]
[377240925,1754306007991,-1268.26,0.00040821,2]
[377240926,1754306008001,-1400.07,0.00040821,2]
[377240927,1754306008010,-862.24,0.00040821,2]
[377240928,1754306008019,-631.36,0.00040821,2]